Cogmind - Beta 12 @@@ ROGUE MODE // 2023.10.22 @ 19:03:10 Player: Figgis Result: Destroyed by S-27 Virus with Autogun Performance ------------- Evolutions (6) 3000 Regions Visited (13) 2600 Robots Destroyed (171) 855 Value Destroyed (6078) 6078 Prototype IDs (30) 600 Alien Tech Used (0) 0 Bonus (321) 321 TOTAL SCORE: 13454 Bonus ------- High Alert Combat Kills 135 Follower Combat Kills 370 Aligned with FarCom 300 Friendly Fire -484 Cogmind --------- Core Integrity 0/1150 Matter 194/300 Energy 98/100 System Corruption 4% Temperature Cool (0) Movement Core (50) Location -4/Upper Caves Parts ------- > --- POWER (2) -------- (None) > --- PROPULSION (4) --- (None) > --- UTILITY (8) ------ (None) > --- WEAPON (5) ------- (None) > --- INVENTORY (5) ---- Antimatter Reactor Advanced Heat Sink Energy Well (350) Hacking Suite Advanced Assault Cannon Peak State ------------ > --- POWER ------------ Heavy Deuterium Engine Antimatter-Angular Reactor > --- PROPULSION ------- Medium Treads Centrium Wheel > --- UTILITY ---------- Armored Scrap Engine Advanced Heat Sink Huge Storage Unit Experimental Sensor Array Advanced Transmission Jammer Focal Shield Improved Shield Generator > --- WEAPON ----------- XL Autogun Array Rapid Accelerated Autogun Construct/G > --- INVENTORY -------- Advanced Heat Sink Improved Cooling System Advanced Coolant Injector Energy Well Superbattery Matter Compressor Hacking Suite Advanced Recalibrator Gauss Rifle Gauss Rifle Advanced Assault Cannon Katana Katana Chainsword Longsword +1 Heavy Pick [Rating: 121] Favorites ----------- Power Heavy Deuterium Engine Engine Heavy Deuterium Engine Power Core Light Nuclear Core Reactor Constructs Propulsion Light Treads Treads Light Treads Wheel Centrium Wheel Hover Unit Constructs Utility Huge Storage Unit Device Improved Heat Sink Storage Huge Storage Unit Hackware Hacking Suite Protection Layered Light Armor Plating Weapon Autogun Energy Gun Spread Laser Ballistic Gun Autogun Ballistic Cannon Gauss Cannon Launcher Rocket Launcher Slashing Weapon Chainsword Piercing Weapon Heavy Pick Build | -11 -10 -10 -9 -9 -9 -8 -8 -7 -7 -7 -5 -4 -4 ------- Run | Jun Mat Min Mat Min Exi Min Mat Fac Sto Rec Fac Fac Upp Slots Evolved 12 | . . . 2 . . . 2 2 . . 4 2 . Power 1 | . . . . . . . . . . . 1 . . Propulsion 2 | . . . 1 . . . . 1 . . . . . Utility 6 | . . . 1 . . . 1 1 . . 2 1 . Weapon 3 | . . . . . . . 1 . . . 1 1 . Parts Attached 143 | 3 12 2 14 4 18 1 25 14 14 1 18 16 1 Power 16 | . 2 . 2 . 2 . 6 . 1 . 2 1 . Engine 10 | . 2 . 2 . 2 . 1 . 1 . 2 . . Core 5 | . . . . . . . 5 . . . . . . Reactor 1 | . . . . . . . . . . . . 1 . Propulsion 46 | 2 1 . 5 . 7 . 11 4 5 . 3 8 . Treads 39 | 2 1 . 5 . 7 . 11 4 5 . 3 1 . Leg . | . . . . . . . . . . . . . . Wheel 1 | . . . . . . . . . . . . 1 . Hover 6 | . . . . . . . . . . . . 6 . Flight . | . . . . . . . . . . . . . . Utility 37 | . 5 . 3 . 3 . 4 3 2 1 10 6 . Device 20 | . 1 . 1 . 1 . 1 2 1 1 7 5 . Storage 7 | . 4 . 1 . 1 . . . . . . 1 . Processor . | . . . . . . . . . . . . . . Hackware 5 | . . . 1 . . . 3 1 . . . . . Protection 5 | . . . . . 1 . . . 1 . 3 . . Artifact . | . . . . . . . . . . . . . . Weapon 44 | 1 4 2 4 4 6 1 4 7 6 . 3 1 1 Energy Gun 3 | 1 2 . . . . . . . . . . . . Energy Cannon . | . . . . . . . . . . . . . . Ballistic Gun 24 | . 2 1 4 3 4 1 4 1 3 . 1 . . Ballistic Cannon 5 | . . . . . . . . 4 . . . . 1 Launcher 4 | . . 1 . 1 2 . . . . . . . . Special Weapon . | . . . . . . . . . . . . . . Impact Weapon . | . . . . . . . . . . . . . . Slashing Weapon 7 | . . . . . . . . 2 3 . 2 . . Piercing Weapon 1 | . . . . . . . . . . . . 1 . Special Melee Weapon . | . . . . . . . . . . . . . . Unidentified Prototypes 3 | . . . 2 . . . 1 . . . . . . Parts Lost 50 | . . . 4 . 8 . 5 1 5 . 12 14 1 Power 5 | . . . . . 1 . 1 . . . 2 1 . Propulsion 24 | . . . 2 . 4 . 2 . 4 . 5 7 . Utility 16 | . . . 1 . 1 . 1 1 . . 5 6 1 Weapon 5 | . . . 1 . 2 . 1 . 1 . . . . Highest Loss Streak 8 | . . . 2 . 8 . 2 1 5 . 3 8 1 To Critical Strikes 6 | . . . . . 6 . . . . . . . . Average Slot Usage (%) 94 | . 97 100 98 100 97 100 98 99 99 92 87 48 2 Engine 8 | . 13 14 10 11 11 11 2 7 7 7 9 3 . Treads 27 | . 27 28 32 33 31 33 26 30 29 30 21 5 . Device 9 | . 12 14 11 11 11 11 1 3 3 6 20 18 2 Storage 9 | . 14 14 11 11 12 22 9 7 7 7 5 4 . Hackware 12 | . . . 11 11 6 . 25 26 23 15 2 . . Ballistic Gun 15 | . 24 27 21 21 20 22 26 16 4 . . 4 . Slashing Weapon 5 | . . . . . . . . . 17 23 17 . . Naked Turns 82 | . . . . . . . . . . . . . 82 Heaviest Build 131 | 1 32 33 95 95 98 97 101 109 107 100 129 131 7 Greatest Support 107 | 3 40 40 60 60 60 60 84 107 106 100 107 76 3 Greatest Overweight (x) 8 | . 3 . 2 1 4 1 4 1 1 . 2 8 2 Average Overweight (x) . | . . . 1 1 1 1 1 . . . 1 1 . Largest Inventory Capacity 25 | 5 25 15 25 25 25 25 25 25 25 25 25 25 5 Average Capacity 23 | 5 14 15 24 25 25 25 25 25 25 25 25 18 5 Most Carried 25 | 5 15 15 25 25 25 25 25 25 25 25 25 21 5 Average Carried 21 | 3 13 14 20 25 22 24 23 24 24 22 20 13 4 Final Capacity 25 | 5 15 15 25 25 25 25 25 25 25 25 25 5 5 Final Carried 25 | 5 15 15 25 25 23 25 25 25 25 22 19 5 5 Scrap Engine Consumption 51 | . . . . . . . . . . 15 26 10 . Constructs Created 5 | . . . . . . . . . . . 3 2 . Constructs Modified 9 | . . . . . . . . . . . 8 1 . Class Distribution -------------------- 39% | Mutant 25% | Scavenger-Mutant 15% | Hacker-Gunner 8% | Scavenger-Gunner 6% | Hacker-Mutant Dominant Class ---------------- Mutant | -10/Materials Mutant | -10/Mines Scavenger-Mutant | -9/Materials Scavenger-Mutant | -9/Mines Scavenger-Mutant | -9/Exiles Scavenger-Mutant | -8/Mines Scavenger-Gunner | -8/Materials Hacker-Gunner | -7/Factory Hacker-Mutant | -7/Storage Mutant | -7/Recycling Mutant | -5/Factory Tank | -4/Factory Mutant | -4/Upper Caves Resources | -11 -10 -10 -9 -9 -9 -8 -8 -7 -7 -7 -5 -4 -4 ----------- Run | Jun Mat Min Mat Min Exi Min Mat Fac Sto Rec Fac Fac Upp Matter Collected 5025 | 223 312 103 661 166 543 116 695 355 697 10 694 450 . Remotely . | . . . . . . . . . . . . . . Salvage Created 7360 | . 426 74 1236 215 53 56 1216 171 627 514 2575 197 . Parts 453 | . 41 5 82 21 15 3 62 11 41 20 140 12 . Haulers Intercepted 7 | . 1 . 3 . . . 1 . 1 . 1 . . Recyclers Shooed 1 | . . . . . . . 1 . . . . . . Parts Field Recycled . | . . . . . . . . . . . . . . Retrieved Matter . | . . . . . . . . . . . . . . Parts Self-Destructed 1 | . . . . . . . . . . . . . 1 Prevented . | . . . . . . . . . . . . . . Kills | -11 -10 -10 -9 -9 -9 -8 -8 -7 -7 -7 -5 -4 -4 ------- Run | Jun Mat Min Mat Min Exi Min Mat Fac Sto Rec Fac Fac Upp Combat Hostiles Destroyed 153 | . 12 10 21 12 6 1 25 6 10 3 44 3 . Melee 43 | . . . . . . . . 1 4 3 35 . . Guns 96 | . 12 3 21 12 3 1 25 4 4 . 8 3 . Cannons 4 | . . . . . . . . 1 2 . 1 . . AOE 10 | . . 7 . . 3 . . . . . . . . Classes Destroyed 15 | . 5 1 3 . . 1 2 1 1 . 1 . . Worker 3 | . . . . . . . 2 1 . . . . . Builder 2 | . . . . . . . . . 2 . . . . Hauler 7 | . 1 . 3 . . . 1 . 1 . 1 . . Recycler 8 | . . . 2 . . . 2 . . 4 . . . Operator 2 | . 1 . . . . . 1 . . . . . . Watcher 9 | . 2 . 2 . . . 2 . 1 . 2 . . Swarmer 39 | . 6 2 4 8 . . 9 2 . . 8 . . Grunt 52 | . 6 . 11 3 . . 9 1 4 . 18 . . Brawler 2 | . . . 1 . . . . . . . 1 . . Duelist 1 | . . . . . . . 1 . . . . . . Sentry 19 | . . . 5 . . . 6 1 3 3 1 . . Specialist 3 | . . . . . . . . . . . 3 . . Hunter 9 | . . . . . . 1 . . 2 . 4 2 . Programmer 13 | . . . . . . . . 2 1 . 9 1 . Assembled 16 | . . 8 . 1 7 . . . . . . . . Best Kill Streak 8 | . 4 8 5 4 6 1 8 2 5 4 6 3 . Combat Bots Only 8 | . 4 8 5 4 5 1 6 1 4 2 6 3 . Max Kills in Single Turn 4 | . 1 4 1 2 3 1 2 1 1 1 1 1 . Gunslinging 1 | . . . . 1 . . . . . . . . . Exploded 4 | . . 4 . . 2 . . . . . . . . Melee 1 | . . . . . . . . 1 1 1 1 . . Uniques/NPCs Destroyed 2 | . . . . . 2 . . . . . . . . EX-HEX (-9/Exiles) 8R-AWN (-9/Exiles) Combat | -11 -10 -10 -9 -9 -9 -8 -8 -7 -7 -7 -5 -4 -4 -------- Run | Jun Mat Min Mat Min Exi Min Mat Fac Sto Rec Fac Fac Upp Damage Taken 11295 | . 363 282 795 496 981 53 934 694 1495 143 2364 2113 582 Core 2371 | . 86 116 117 67 148 12 88 153 211 39 183 598 553 Absorbed by Shields 1178 | . . . . . 284 20 17 . . . 731 126 . Regen/Repaired (Parts) 867 | . 81 . 180 . . . 130 . 364 37 75 . . Core Remaining (%) 56 | 100 . 19 . . . 14 84 . . 42 81 . . Volleys Fired 336 | . 32 11 73 29 43 2 56 28 18 . 29 14 1 Largest 3 | . 2 2 2 2 2 2 3 3 3 . 1 1 1 Hottest 130 | . 130 56 46 50 58 48 76 124 104 . 60 60 48 Shots Fired 708 | . 64 17 138 58 77 4 170 82 54 . 29 14 1 Gun 658 | . 64 14 138 58 65 4 170 54 49 . 28 14 . Cannon 35 | . . . . . . . . 28 5 . 1 . 1 Launcher 15 | . . 3 . . 12 . . . . . . . . Special . | . . . . . . . . . . . . . . Kinetic 683 | . 54 14 138 58 65 4 170 82 54 . 29 14 1 Thermal 10 | . 10 . . . . . . . . . . . . Explosive 15 | . . 3 . . 12 . . . . . . . . Electromagnetic . | . . . . . . . . . . . . . . Robot Hit Streak 17 | . 13 5 13 10 17 3 15 5 10 . 12 8 . Robot Miss Streak 7 | . 5 4 3 3 3 1 5 7 2 . 5 4 1 Penetration Max 1 | . . . . . . . 1 . 1 . . . . Secondary Targets 19 | . 4 . 4 3 1 . 7 . . . . . . Max Gunslinging Chain 1 | . 1 . 1 1 1 . 1 . . . . . . Shots Hit Robots 617 | . 42 8 91 36 59 3 101 46 60 10 147 14 . Core Hits 308 | . 25 17 36 17 28 3 54 15 23 5 73 12 . Critical Kills 2 | . . . 1 . . . . . 1 . . . . Critical Parts Destroyed 4 | . . . . . 1 . 2 . 1 . . . . Critical Strikes 28 | . . . 1 . 1 . 2 1 7 1 15 . . Destroy 6 | . . . 1 . 1 . 2 . 2 . . . . Blast 1 | . . . . . . . . 1 . . . . . Sever 21 | . . . . . . . . . 5 1 15 . . Melee Attacks 192 | . . . . . . . . 7 36 12 137 . . Impact . | . . . . . . . . . . . . . . Slashing 192 | . . . . . . . . 7 36 12 137 . . Piercing . | . . . . . . . . . . . . . . Sneak Attacks 7 | . . . . . . . . . 2 4 1 . . Combat Hostiles . | . . . . . . . . . . . . . . Follow-up Attacks 32 | . . . . . . . . . 7 . 25 . . Damage Inflicted 18416 | . 595 538 1450 559 1684 30 2097 1253 2154 664 6639 753 . Guns 9583 | . 595 115 1450 559 1252 30 2097 664 687 . 1381 753 . Cannons 520 | . . . . . . . . 428 74 . 18 . . Explosions 914 | . . 423 . . 432 . . 59 . . . . . Melee 7399 | . . . . . . . . 102 1393 664 5240 . . Ramming . | . . . . . . . . . . . . . . Kinetic 10023 | . 515 115 1450 559 1252 30 2097 1092 761 . 1399 753 . Thermal 139 | . 80 . . . . . . 59 . . . . . Explosive 855 | . . 423 . . 432 . . . . . . . . Electromagnetic . | . . . . . . . . . . . . . . Impact . | . . . . . . . . . . . . . . Slashing 7399 | . . . . . . . . 102 1393 664 5240 . . Piercing . | . . . . . . . . . . . . . . Highest Corruption 12 | . . . . . . . 4 1 . . 12 4 4 Average Corruption 5 | . . . . . . . 2 1 . . 8 3 4 Corruption Purged 7 | . . . . . . . . 2 . . 5 . . Corruption Blocked . | . . . . . . . . . . . . . . Effects 84 | . . . . . . . 21 1 . . 52 6 4 Message Errors 22 | . . . . . . . 5 . . . 15 2 . Matter Fused 19 | . . . . . . . 5 . . . 9 3 2 Heat Flow Errors 7 | . . . . . . . 1 1 . . 5 . . Energy Discharges 12 | . . . . . . . 2 . . . 8 . 2 Parts Rejected 1 | . . . . . . . . . . . 1 . . Parts Fused 2 | . . . . . . . 2 . . . . . . Data Loss (minor) 10 | . . . . . . . 2 . . . 8 . . Data Loss (major) 4 | . . . . . . . . . . . 3 1 . Misfires 5 | . . . . . . . 4 . . . 1 . . Alerts 1 | . . . . . . . . . . . 1 . . Weapon Failures 1 | . . . . . . . . . . . 1 . . Overload Shots . | . . . . . . . . . . . . . . Overflow Damage 517 | . . . . . 42 . . 29 65 192 189 . . Projectiles 29 | . . . . . . . . 29 . . . . . Explosions 42 | . . . . . 42 . . . . . . . . Melee 446 | . . . . . . . . . 65 192 189 . . Knockbacks 6 | . . . . . . . . 6 . . . . . Impact . | . . . . . . . . . . . . . . Kinetic 6 | . . . . . . . . 6 . . . . . Secondary . | . . . . . . . . . . . . . . Self-Inflicted Damage 176 | . . 49 . . 48 . . 79 . . . . . Shots 3 | . . 1 . . 1 . . 1 . . . . . Rammed . | . . . . . . . . . . . . . . Targets Rammed . | . . . . . . . . . . . . . . Kicked . | . . . . . . . . . . . . . . Crushed . | . . . . . . . . . . . . . . Highest Temperature 363 | . 345 . 8 . . . 267 336 78 . 321 363 . Average Temperature 62 | . 132 . 4 . . . 19 68 21 . 110 73 . Received Heat Transfer 1647 | . 81 . 300 66 . 12 354 69 369 42 290 64 . Effects 4 | . . . . . . . . 3 . . . 1 . Shutdowns 1 | . . . . . . . . 1 . . . . . Matter Decay 2 | . . . . . . . . 1 . . . 1 . Damage (minor) 1 | . . . . . . . . 1 . . . . . Siege Activations . | . . . . . . . . . . . . . . Robots Corrupted . | . . . . . . . . . . . . . . Combat Hostiles . | . . . . . . . . . . . . . . Parts Fried . | . . . . . . . . . . . . . . Impact Corruptions . | . . . . . . . . . . . . . . Robots Melted . | . . . . . . . . . . . . . . Combat Hostiles . | . . . . . . . . . . . . . . Parts Melted 1 | . . . . . . . . . . . 1 . . Heat Transferred 150 | . 100 . . . . . . 50 . . . . . Parts Sabotaged 3 | . . . . . . . . . . . . 3 . Parts Stolen . | . . . . . . . . . . . . . . Parts Stripped . | . . . . . . . . . . . . . . Power Chain Reactions . | . . . . . . . . . . . . . . Missiles Intercepted . | . . . . . . . . . . . . . . Alert | -11 -10 -10 -9 -9 -9 -8 -8 -7 -7 -7 -5 -4 -4 ------- Run | Jun Mat Min Mat Min Exi Min Mat Fac Sto Rec Fac Fac Upp Peak Influence 610 | . 199 48 249 259 . 30 373 99 296 52 610 455 . Initial 298 | . . 19 13 49 . . 5 19 16 22 100 298 . Average 121 | . 82 26 131 118 . 17 124 26 116 21 285 362 . Maximum Alert Level 2 | . . . 1 1 . . 1 . 1 . 2 2 . Low Security (%) 75 | 100 100 100 83 78 . 100 81 100 74 100 13 . . Level 1 22 | . . . 16 21 . . 18 . 25 . 78 55 . Level 2 2 | . . . . . . . . . . . 7 44 . Level 3 . | . . . . . . . . . . . . . . Level 4 . | . . . . . . . . . . . . . . Level 5 . | . . . . . . . . . . . . . . High Security . | . . . . . . . . . . . . . . Max Security . | . . . . . . . . . . . . . . Squads Dispatched 23 | . . . 3 . . . 3 3 3 . 8 3 . Investigation 2 | . . . 1 . . . 1 . . . . . . Extermination 8 | . . . . . . . . 2 2 . 4 . . Reinforcement 10 | . . . 2 . . . 1 1 1 . 4 1 . Assault 2 | . . . . . . . . . . . . 2 . Garrison 1 | . . . . . . . 1 . . . . . . Intercept . | . . . . . . . . . . . . . . Searches Triggered . | . . . . . . . . . . . . . . Construction Impeded 1 | . . . . . . . . . 1 . . . . Haulers Reinforced 3 | . . . . . . . . 1 . . 2 . . Active Scanning Responses . | . . . . . . . . . . . . . . Cargo Convoy Interrupts . | . . . . . . . . . . . . . . Stealth | -11 -10 -10 -9 -9 -9 -8 -8 -7 -7 -7 -5 -4 -4 --------- Run | Jun Mat Min Mat Min Exi Min Mat Fac Sto Rec Fac Fac Upp Distress Signals 12 | . 1 . 2 . . . 2 . 5 . 1 1 . Communications Jammed 56 | . . . . . . . . . . . 4 52 . Distress Signals 53 | . . . . . . . . . . . 1 52 . Times Spotted 271 | . 19 9 32 13 6 4 36 12 27 3 51 51 8 Peak Tracking Total 24 | . 4 10 4 4 7 3 6 3 5 2 4 24 5 Tactical Retreats 20 | . . . 1 2 . 1 . 1 1 . 4 7 3 Traps | -11 -10 -10 -9 -9 -9 -8 -8 -7 -7 -7 -5 -4 -4 ------- Run | Jun Mat Min Mat Min Exi Min Mat Fac Sto Rec Fac Fac Upp Traps Triggered 12 | . . . . . . . 7 1 1 . 2 1 . Indirectly . | . . . . . . . . . . . . . . Trap Hack Attempts . | . . . . . . . . . . . . . . Triggered . | . . . . . . . . . . . . . . Disarmed . | . . . . . . . . . . . . . . Reprogrammed . | . . . . . . . . . . . . . . Reused . | . . . . . . . . . . . . . . Traps Extracted . | . . . . . . . . . . . . . . Installed . | . . . . . . . . . . . . . . Triggered . | . . . . . . . . . . . . . . Machines | -11 -10 -10 -9 -9 -9 -8 -8 -7 -7 -7 -5 -4 -4 ---------- Run | Jun Mat Min Mat Min Exi Min Mat Fac Sto Rec Fac Fac Upp Machines Disabled 16 | . . . . . 5 . 3 4 4 . . . . Max in Single Turn 2 | . . . . . 2 . 1 2 1 . . . . Garrison Access 3 | . . . . . . . 1 1 . . . 1 . Machines Repaired . | . . . . . . . . . . . . . . Machines Sabotaged . | . . . . . . . . . . . . . . Overloaded Fab Kills . | . . . . . . . . . . . . . . Hacking | -11 -10 -10 -9 -9 -9 -8 -8 -7 -7 -7 -5 -4 -4 --------- Run | Jun Mat Min Mat Min Exi Min Mat Fac Sto Rec Fac Fac Upp Machines Accessed 53 | . 6 . 3 . 2 . 9 6 6 10 9 2 . Terminals 29 | . 5 . 1 . . . 6 3 4 6 4 . . Fabricators 3 | . . . . . . . . 1 . . 2 . . Repair Stations 5 | . 1 . 1 . . . 1 . 2 . . . . Recycling Units 7 | . . . . . . . 1 1 . 4 1 . . Scanalyzers 2 | . . . 1 . . . . . . . . 1 . Garrison Access 5 | . . . . . . . 1 1 . . 2 1 . Total Hacks 134 | . 16 . 12 . 2 . 31 20 18 17 15 3 . Successful 73 | . 5 . 10 . 2 . 19 12 13 7 4 1 . Failed 59 | . 11 . 2 . . . 11 8 5 9 11 2 . Catastrophic 14 | . 1 . 1 . . . 2 2 2 2 4 . . Database Lockouts 2 | . . . . . . . 1 . . 1 . . . Manual 27 | . 4 . . . 1 . 12 2 4 4 . . . Terminals 77 | . 10 . 1 . . . 24 12 9 12 9 . . Fabricators 5 | . . . . . . . . 3 . . 2 . . Repair Stations 25 | . 6 . 6 . . . 4 . 9 . . . . Recycling Units 11 | . . . . . . . 2 3 . 5 1 . . Scanalyzers 6 | . . . 5 . . . . . . . . 1 . Garrison Access 8 | . . . . . . . 1 2 . . 3 2 . Terminal Hacks 35 | . 2 . . . 2 . 13 8 5 2 3 . . Record 1 | . . . . . 1 . . . . . . . . Part Schematic 1 | . . . . . . . . . . . 1 . . Robot Analysis 5 | . 1 . . . . . 2 1 . 1 . . . Branch Access Points 3 | . . . . . . . 1 1 1 . . . . Alert Level 3 | . . . . . . . 2 . 1 . . . . Unreport Threat 6 | . . . . . . . 3 1 2 . . . . Locate Traps 3 | . 1 . . . . . 1 . . . 1 . . Dispatch Records 2 | . . . . . . . 1 . 1 . . . . Security Status 2 | . . . . . . . . 1 . . 1 . . Surveillance Status 1 | . . . . . . . . 1 . . . . . Patrol Status 2 | . . . . . . . . 1 . 1 . . . Recall Reinforcements 1 | . . . . . . . 1 . . . . . . Hauler Manifests 2 | . . . . . . . 1 1 . . . . . Registered Components 2 | . . . . . . . 1 1 . . . . . EX-Prototype ID Bank 1 | . . . . . 1 . . . . . . . . Fabricator Hacks 2 | . . . . . . . . 1 . . 1 . . Network Status 1 | . . . . . . . . 1 . . . . . Build 1 | . . . . . . . . . . . 1 . . Repair Station Hacks 21 | . 3 . 6 . . . 4 . 8 . . . . Scan Component 11 | . 2 . 3 . . . 2 . 4 . . . . Repair 10 | . 1 . 3 . . . 2 . 4 . . . . Recycling Unit Hacks 7 | . . . . . . . 1 2 . 4 . . . Process 1 | . . . . . . . . 1 . . . . . Report Inventory 3 | . . . . . . . 1 . . 2 . . . Retrieve Matter 1 | . . . . . . . . 1 . . . . . Retrieve Components 2 | . . . . . . . . . . 2 . . . Scanalyzer 4 | . . . 4 . . . . . . . . . . Insert Component 2 | . . . 2 . . . . . . . . . . Analyze 2 | . . . 2 . . . . . . . . . . Garrison Access Hacks 3 | . . . . . . . 1 1 . . . 1 . Seal Access 3 | . . . . . . . 1 1 . . . 1 . Unauthorized Hacks 1 | . . . . . . . . . . 1 . . . Terminals 1 | . . . . . . . . . . 1 . . . Search 1 | . . . . . . . . . . 1 . . . Fabricators . | . . . . . . . . . . . . . . Repair Stations . | . . . . . . . . . . . . . . Recycling Units . | . . . . . . . . . . . . . . Scanalyzers . | . . . . . . . . . . . . . . Garrison Access . | . . . . . . . . . . . . . . Data Cores Recovered 2 | . 1 . . . . . . . 1 . . . . Used 1 | . 1 . . . . . . . . . . . . Hacking Detections 38 | . 5 . 3 . . . 6 4 3 7 8 2 . Full Trace Events 2 | . . . 1 . . . . . . 1 . . . Feedback Events . | . . . . . . . . . . . . . . Feedback Blocked . | . . . . . . . . . . . . . . Robot Schematics Acquired . | . . . . . . . . . . . . . . Robots Built . | . . . . . . . . . . . . . . Authchips . | . . . . . . . . . . . . . . Time . | . . . . . . . . . . . . . . Total Robot Build Rating . | . . . . . . . . . . . . . . Part Schematics Acquired 2 | . . . 1 . . . . . . . 1 . . Parts Built . | . . . . . . . . . . . . . . Authchips . | . . . . . . . . . . . . . . Time 139 | . . . . . . . . . . . 139 . . Total Part Build Rating . | . . . . . . . . . . . . . . Parts Repaired 10 | . 1 . 3 . . . 2 . 4 . . . . Time 473 | . 26 . 109 . . . 174 . 164 . . . . Parts Recycled . | . . . . . . . . . . . . . . Recycled Matter 254 | . . . . . . . . 254 . . . . . Retrieved Matter 254 | . . . . . . . . 254 . . . . . Retrieved Components 9 | . . . . . . . . . . 9 . . . Parts Scanalyzed 1 | . . . 1 . . . . . . . . . . Part Schematics Acquired 1 | . . . 1 . . . . . . . . . . Parts Damaged . | . . . . . . . . . . . . . . Bothacking | -11 -10 -10 -9 -9 -9 -8 -8 -7 -7 -7 -5 -4 -4 ------------ Run | Jun Mat Min Mat Min Exi Min Mat Fac Sto Rec Fac Fac Upp Used RIF Installer . | . . . . . . . . . . . . . . Robots Hacked . | . . . . . . . . . . . . . . Non-combat . | . . . . . . . . . . . . . . Combat . | . . . . . . . . . . . . . . Robot Hacks Applied . | . . . . . . . . . . . . . . Relay Couplers Released 4 | . . . . . . . . . . . 4 . . Programmers 4 | . . . . . . . . . . . 4 . . Fabnet Peak Effective % . | . . . . . . . . . . . . . . Robots Rewired . | . . . . . . . . . . . . . . Allies Hacked . | . . . . . . . . . . . . . . Hacks Repelled . | . . . . . . . . . . . . . . Allies | -11 -10 -10 -9 -9 -9 -8 -8 -7 -7 -7 -5 -4 -4 -------- Run | Jun Mat Min Mat Min Exi Min Mat Fac Sto Rec Fac Fac Upp Total Allies 5 | . . 1 . . . . . . 4 . . . . Largest Group 2 | . . 1 1 . . . . . 2 2 . . . Highest-Rated Group 113 | . . 31 31 . . . . . 113 113 . . . Highest-Rated Ally 100 | . . 31 31 . . . . . 100 84 . . . Total Orders . | . . . . . . . . . . . . . . Ally Attacks 51 | . . . . . . . . . 50 1 . . . Total Damage 1508 | . . . . . . . . . 1451 57 . . . Kills 15 | . . . . . . . . . 15 . . . . Allies Corrupted . | . . . . . . . . . . . . . . Allies Melted . | . . . . . . . . . . . . . . Intel | -11 -10 -10 -9 -9 -9 -8 -8 -7 -7 -7 -5 -4 -4 ------- Run | Jun Mat Min Mat Min Exi Min Mat Fac Sto Rec Fac Fac Upp Robot Analysis Total 4 | . 1 . . . . . 2 1 . . . . . Derelict Logs Recovered 5 | . . 1 . 2 . . . . . . . . 2 Drone Launches . | . . . . . . . . . . . . . . Drone Recoveries . | . . . . . . . . . . . . . . Exploration | -11 -10 -10 -9 -9 -9 -8 -8 -7 -7 -7 -5 -4 -4 ------------- Run | Jun Mat Min Mat Min Exi Min Mat Fac Sto Rec Fac Fac Upp Turns Passed 17345 | 29 988 1197 2241 1065 1618 685 2051 2175 1279 962 2393 487 175 Spaces Moved 7693 | 38 502 640 720 369 582 275 675 1203 461 609 764 516 339 Core 532 | 38 14 . . . . . . . . . . 141 339 Treads 6838 | . 488 640 720 369 582 275 675 1203 461 609 764 52 . Legs . | . . . . . . . . . . . . . . Wheels 61 | . . . . . . . . . . . . 61 . Hover 262 | . . . . . . . . . . . . 262 . Flight . | . . . . . . . . . . . . . . Fastest Speed 28 | 50 50 160 240 240 240 240 240 156 152 152 232 28 50 Average Speed 189 | 50 159 160 241 240 248 240 243 166 215 152 238 83 50 Slowest Speed 480 | 50 200 160 320 240 480 240 480 236 236 152 320 480 150 Overloaded Moves . | . . . . . . . . . . . . . . Propulsion Burnouts . | . . . . . . . . . . . . . . Robots Hopped . | . . . . . . . . . . . . . . Cave-ins Triggered . | . . . . . . . . . . . . . . Exploration Rate (%) 58 | 3 90 97 67 71 60 71 55 27 87 99 19 20 49 Regions Visited 13 Branch Regions 7 Pre-discovered Areas 2 | . . . . . 1 . . . . . . . 1 Known Exits Taken 2 | . . . . . . . . 1 1 . . . . Unknown Exits Taken 11 | 1 1 1 1 1 1 1 1 . . 1 1 1 . Scrap Searched 5 | . . 1 . 1 . 3 . . . . . . . Spaces Dug 6 | . . . . . . . . 5 . . 1 . . Terrain Destroyed 158 | . . 38 . . 71 . 2 29 4 . 7 6 1 Melee 6 | . . . . . . . . 5 . . 1 . . Projectile 26 | . . . . . . . 2 7 4 . 6 6 1 AOE 126 | . . 38 . . 71 . . 17 . . . . . Terrain Rammed . | . . . . . . . . . . . . . . Walls Destroyed . | . . . . . . . . . . . . . . Machines Disabled . | . . . . . . . . . . . . . . Actions | -11 -10 -10 -9 -9 -9 -8 -8 -7 -7 -7 -5 -4 -4 --------- Run | Jun Mat Min Mat Min Exi Min Mat Fac Sto Rec Fac Fac Upp Total 9788 | 47 637 798 1106 493 678 296 965 1308 678 637 1225 577 343 Wait 1274 | . 66 144 274 92 8 17 179 30 151 11 291 10 1 Move 7680 | 37 501 639 719 368 581 274 674 1202 460 608 763 515 339 Hop . | . . . . . . . . . . . . . . Pick Up 125 | 7 18 1 22 . 16 2 18 13 7 1 13 7 . Fast Attach 24 | 1 2 . . . . . 9 1 4 1 . 6 . Attach 66 | 2 4 . 9 . 8 . 9 4 5 . 15 9 1 Detach 10 | . . . . . . . . 1 . . 3 5 1 Swap 53 | . 6 2 5 4 10 1 7 9 5 . 3 1 . Drop 73 | . 8 1 4 . 12 . 13 13 3 6 3 10 . Fire 336 | . 32 11 73 29 43 2 56 28 18 . 29 14 1 Melee 147 | . . . . . . . . 7 25 10 105 . . Ram . | . . . . . . . . . . . . . . Kick . | . . . . . . . . . . . . . . Crush . | . . . . . . . . . . . . . . Escape Stasis . | . . . . . . . . . . . . . . Rewire . | . . . . . . . . . . . . . . Trap . | . . . . . . . . . . . . . . Miscellaneous . | . . . . . . . . . . . . . . Route ------- -11/Junkyard -10/Materials (discovered 5 exits: *Mat x3 / [*Min x2]) -10/Mines (discovered 2 exits: *Mat x2) -9/Materials (discovered 2 exits: *Mat / [*Min]) -9/Mines (discovered 3 exits: *Mat x2 / *Exi) -9/Exiles -8/Mines (discovered 2 exits: *Mat x2) -8/Materials -7/Factory (discovered 5 exits: [*Fac x2] / *Sto / Low x2) -7/Storage (discovered 2 exits: [*Fac] / *Rec) -7/Recycling -5/Factory -4/Factory -4/Upper Caves History --------- Turn | Location | Event 17 | -11/Junkyard | Discovered new exit (range 15) 30 | -11/Junkyard | Entered Materials 260 | -10/Materials | Discovered new exit (range 13) 284 | -10/Materials | Discovered new exit (range 13) 301 | -10/Materials | Build established: Mutant 364 | -10/Materials | Discovered new exit (range 9) 544 | -10/Materials | Discovered new exit (range 3) 631 | -10/Materials | Discovered new exit (range 4) 1002 | -10/Materials | Repaired Lgt. Treads 1018 | -10/Materials | Entered Mines 1046 | -10/Mines | Met a Derelict bent on vengeance 1257 | -10/Mines | Found a damaged Exp. Sensor Array with a note attached 1264 | -10/Mines | Found Prototype Device 1440 | -10/Mines | Assembled infested the area 1457 | -10/Mines | Core integrity fell below 50% 1493 | -10/Mines | Destroyed 8 combat bots 1533 | -10/Mines | Learned Materials emergency access door positions 1964 | -10/Mines | Core integrity fell below 20% 1976 | -10/Mines | Discovered new exit (range 11) 1979 | -10/Mines | Received a Mining Laser from a helpful Derelict 2085 | -10/Mines | Discovered new exit (range 14) 2215 | -10/Mines | Entered Materials 2215 | -9/Materials | Accompanied by 1 ally 2215 | -9/Materials | Evolved 2 slots: Propulsion x1, Utility x1 3120 | -9/Materials | Discovered new exit (range 9) 3312 | -9/Materials | Repaired Lgt. Treads 3345 | -9/Materials | Repaired Autogun 3397 | -9/Materials | Repaired Hvy. Ion Engine 3687 | -9/Materials | Build established: Scavenger-Mutant 3764 | -9/Materials | Identified Exp. Sensor Array 4379 | -9/Materials | Discovered new exit (range 7) 4456 | -9/Materials | Entered Mines 4693 | -9/Mines | Discovered new exit (range 7) 4763 | -9/Mines | Learned Materials terminal intel 4790 | -9/Mines | Excavation squad dispatched 4790 | -9/Mines | A large section of the Mines collapsed 5037 | -9/Mines | Discovered new exit (range 15) 5054 | -9/Mines | Learned Materials stockpile data 5512 | -9/Mines | Deemed a non-threat by the Exiles lab entrance 5512 | -9/Mines | Discovered new exit (range 5) 5521 | -9/Mines | Entered Exiles 5579 | -9/Exiles | Met 8R-AWN 5622 | -9/Exiles | Met EX-HEX 5689 | -9/Exiles | Met EX-BIN 5718 | -9/Exiles | Aligned with FarCom system 5721 | -9/Exiles | Given EX-Vault access code 5778 | -9/Exiles | Opened EX-Vault 5798 | -9/Exiles | Found XL Autogun Array 5804 | -9/Exiles | Found Longsword +1 5815 | -9/Exiles | Found Superbattery 5871 | -9/Exiles | Warned to stay clear of 0b10 Research branches 6046 | -9/Exiles | Met EX-DEC 6061 | -9/Exiles | Learned location of Zion (-6) 6279 | -9/Exiles | Discovered new exit (range 14) 6811 | -9/Exiles | Attacked by the Exiles 6817 | -9/Exiles | Core integrity fell below 50% 6838 | -9/Exiles | Destroyed EX-HEX 6909 | -9/Exiles | Core integrity fell below 20% 6922 | -9/Exiles | Destroyed 8R-AWN 6939 | -9/Exiles | Lost 8 parts (1p4n1u2w) 7139 | -9/Exiles | Stole three prototypes: Superbattery, XL Autogun Array, Longsword +1 7139 | -9/Exiles | Entered Mines 7257 | -8/Mines | Discovered new exit (range 16) 7747 | -8/Mines | Discovered new exit (range 7) 7824 | -8/Mines | Entered Materials 7824 | -8/Materials | Evolved 2 slots: Utility x1, Weapon x1 7826 | -8/Materials | Loaded intel: 12 terminal locations 8352 | -8/Materials | Build established: Scavenger-Gunner 8764 | -8/Materials | Repaired Hpw. Shotgun 8902 | -8/Materials | Repaired Broken Exp. Sensor Array 8967 | -8/Materials | Garrison activated, responded to threat 9186 | -8/Materials | Discovered new exit (range 14) 9419 | -8/Materials | Central database locked down 9826 | -8/Materials | Build established: Hacker-Gunner 9875 | -8/Materials | Entered Factory 9875 | -7/Factory | Evolved 2 slots: Propulsion x1, Utility x1 10638 | -7/Factory | Discovered new exit (range 15) 10684 | -7/Factory | Discovered new exit (range 5) 11375 | -7/Factory | Identified exit to Storage 11375 | -7/Factory | Identified exit to Lower Caves 12050 | -7/Factory | Entered Storage 12172 | -7/Storage | Repaired Adv. Treads 12438 | -7/Storage | Lost 5 parts (4n1w) 12513 | -7/Storage | Met 01-MTF 12659 | -7/Storage | Repaired Gauss Rifle 12674 | -7/Storage | Build established: Hacker-Mutant 12704 | -7/Storage | Repaired Adv. Treads 12750 | -7/Storage | Repaired System Restoration Module 12822 | -7/Storage | Discovered new exit (range 9) 12876 | -7/Storage | Identified exit to Recycling 13158 | -7/Storage | Core integrity fell below 50% 13315 | -7/Storage | Used back door to open Recycling access 13329 | -7/Storage | Entered Recycling 13329 | -7/Recycling | Accompanied by 2 allies (01-MTF) 13331 | -7/Recycling | Found Scrap Engine 13334 | -7/Recycling | 01-MTF left 13593 | -7/Recycling | Discovered new exit (range 8) 13640 | -7/Recycling | Build established: Mutant 14291 | -7/Recycling | Entered Factory 14291 | -5/Factory | Evolved 4 slots: Power x1, Utility x2, Weapon x1 14938 | -5/Factory | Lost 3 parts (1n2u) 16352 | -5/Factory | System corruption reached 10% 16563 | -5/Factory | Lost 3 parts (1p1n1u) 16644 | -5/Factory | Discovered new exit (range 15) 16684 | -5/Factory | Entered another Factory area 16684 | -4/Factory | Evolved 2 slots: Utility x1, Weapon x1 16805 | -4/Factory | Build established: Tank 16934 | -4/Factory | First assault squad dispatched 17033 | -4/Factory | Lost 4 parts (1p1n2u) 17163 | -4/Factory | Core integrity fell below 50% 17169 | -4/Factory | Discovered new exit (range 5) 17171 | -4/Factory | Entered Upper Caves 17193 | -4/Upper Caves | Lost 8 parts (5n3u) 17301 | -4/Upper Caves | Core integrity fell below 20% 17320 | -4/Upper Caves | Learned Research stockpile data 17343 | -4/Upper Caves | Learned location of Testing (-2) 17346 | -4/Upper Caves | Destroyed by S-27 Virus with Autogun Last Messages --------------- 17137_ Discarded Rapid Accelerated Autogun Construct/G. 17137_ Scrap Engine damaged due to network destabilization (-6). 17141_ Penetrated by Slug. 17141_ Imp. Linear Gravjet destroyed. 17142_ Dropped Antimatter Reactor. 17155_ K-01 Serf cleans the Nuclear Reactor. 17162_ Scrap Engine destroyed. 17169_ EXIT=FOUND LOCATION=UNKNOWN GOAL=ESCAPE 17205_ System corrupted: Matter fused (-9). 17238_ System corrupted: Energy discharge (-38). 17264_ Adv. Transmission Jammer destroyed. 17270_ System corrupted: Matter fused (-6). 17286_ S-27 Virus destroyed. 17316_ System corrupted: Energy discharge (-27). 17320_ Acquired derelict log, extracted data. Data stored: Research stockpile data. 17343_ Acquired derelict log, extracted data. World map updated: -2/Testing. Map ----- +----------------------------------------------------+ | ????????????????????## #### ###### | | ????????????????????# #### ###????### | | ????????????????????# ## #####????????## | | ????????????????????###### #????????????###### | | ??????????????#????????## ####??????????????? | | ?????????????## ???????# ## #?????????? | | ?????????????# ??????## #?????????? | | ?????????????# ????## ##?????????? | | ?????????????# #??## ## #??????????? | | ??????????????# ### #####?#### #?????????? | | ???????????????# ###?????????# ?????????? | | ??????????????## ##???????????? ?????????? | | ??????????????# ##?????????????? ?????????? | | ??????????????# ########?????????? ?????????? | | ??????????????# #?????????????????????? | | ??????????????# #?????????????????????? | | ??????????????# " " #?????????????????????? | | ??????????????# """ "" #?????????????????????? | | ??????????????# """" "" #?????????????????????? | | ??????????????# "" " #?????????????????????? | | ??????????????# s #?????????????????????? | | ????????????# #?????????????????????? | | ????????????## ####s##?????????????????????? | | ?????????????### ???# #??????????????????????? | | ???????????????# ???# #??????????????????????? | | ???????????????# # #???#@#??????????????????????? | | ???????????????# ##????# #??????????????????????? | | ???????????????# ?????? # ??????????????????????? | | ???????????????#?#?????? ?#??????????????????????? | | ??????????????????????? ????????????????????????? | | ???????????????????????# ????????????????????????? | | ??????????????????????? ????????????????????????? | | ???????????????????????##????????????????????????? | | ?????????????????????????????????????????????????? | | ?????????????????????????????????????????????????? | | ?????????????????????????????????????????????????? | | ?????????????????????????????????????????????????? | | ?????????????????????????????????????????????????? | | ?????????????????????????????????????????????????? | | ?????????????????????????????????????????????????? | | ?????????????????????????????????????????????????? | | ?????????????????????????????????????????????????? | | ?????????????????????????????????????????????????? | | ?????????????????????????????????????????????????? | | ?????????????????????????????????????????????????? | | ?????????????????????????????????????????????????? | | ?????????????????????????????????????????????????? | | ?????????????????????????????????????????????????? | | ?????????????????????????????????????????????????? | | ?????????????????????????????????????????????????? | +----------------------------------------------------+ Best States ------------- Heat Dissipation 62 Energy Generation 34 Energy Capacity 1750 Matter Stores 300 Matter Capacity 300 Sight Range 16 Robot Scan Range 15 Terrain Scan Density 10 Jamming Range 16 Armor Coverage 225 Resistance: KI 20 Resistance: EX 50 Evasion (%) 59 Recoil Reduction 4 Offensive Hacking 17 Defensive Hacking 17 Item Schematics ----------------- Exp. Sensor Array | -9/Materials | Scanalyzed Hvy. Disruptor Cannon | -5/Factory | Hacked Robot Schematics ------------------ None Fabricated ------------ Nothing Alien Tech Used ----------------- None Achievements -------------- Brute Force Challenges ------------ None Game ------ Seed AssemblyTargetField Manual? 0 Play Time 01:29:16 Cumulative 83.0 hours Start 2023.10.22 @ 17:33:37 End 2023.10.22 @ 19:03:10 Sessions 1 Manual Loads 0 Difficulty Rogue Special Mode None Game No. 138 Rogue 135 Adventurer 3 Explorer 0 Win Type - Total 0 Types 0/0/0/0/0/0/0/0/0 Lore% 34 Gallery% 52 Achievement% 37 Wizard Run 0 Options --------- ASCII 0 Keyboard 0 Movement Mouse Keybinds 0 Fullscreen 2 Font 18/SmallcapsGlow Map View 76x50 Tactical HUD 1 Map Filters NONE Filters NONE Steam 1 RUN: c069308b-ff35-4dcb-8314-4433eb4a4120